Cogmind - Beta 16 @@@ ROGUE MODE // 2025.10.24 @ 05:25:55 Player: shapeshifter Result: Destroyed by G-47 Trooper with Particle Gun Performance ------------- Evolutions (0) 0 Regions Visited (2) 400 Robots Destroyed (24) 120 Value Destroyed (500) 500 Prototype IDs (0) 0 Alien Tech Used (0) 0 Bonus (-98) -98 TOTAL SCORE: 922 Bonus ------- Friendly Fire -98 Cogmind --------- Core Integrity 0/250 Matter 247/300 Energy 248/250 System Corruption 0% Temperature Cool (9) Movement Core (500) Ox9 Location -10/Mines Parts ------- > --- POWER (1) -------- Ion Engine > --- PROPULSION (2) --- (None) > --- UTILITY (2) ------ Large Storage Unit Salvage Targeting Computer > --- WEAPON (2) ------- Assault Rifle Assault Rifle > --- INVENTORY (15) --- Ion Engine Huge Storage Unit High-capacity Matter Pod (200) High-capacity Matter Pod (59) Salvage Targeting Computer Light Armor Plating Light Armor Plating Assault Rifle Assault Rifle Assault Rifle Assault Rifle Assault Rifle Grenade Launcher Peak State ------------ > --- POWER ------------ Ion Engine > --- PROPULSION ------- Light Treads Light Treads > --- UTILITY ---------- Small Storage Unit Salvage Targeting Computer > --- WEAPON ----------- Particle Gun Light Assault Rifle > --- INVENTORY -------- Ion Engine Large Matter Pod Salvage Targeting Computer Salvage Targeting Computer Salvage Targeting Computer Tractor Beam Grenade Launcher [Rating: 10] Favorites ----------- Power Ion Engine Engine Ion Engine Propulsion Light Treads Treads Light Treads Utility Salvage Targeting Computer Device Seismic Detector Storage Large Storage Unit Processor Salvage Targeting Computer Weapon Assault Rifle Energy Gun Particle Gun Ballistic Gun Assault Rifle Launcher Grenade Launcher Build | -11 -10 -10 ------- Run | Yrd Mat Min Slots Evolved . | . . . Power . | . . . Propulsion . | . . . Utility . | . . . Weapon . | . . . Parts Attached 17 | 7 8 2 Power 1 | 1 . . Engine 1 | 1 . . Core . | . . . Reactor . | . . . Propulsion 3 | 2 1 . Treads 3 | 2 1 . Leg . | . . . Wheel . | . . . Hover . | . . . Flight . | . . . Utility 4 | 2 2 . Device 1 | 1 . . Storage 2 | 1 1 . Processor 1 | . 1 . Hackware . | . . . Protection . | . . . Artifact . | . . . Weapon 9 | 2 5 2 Energy Gun 1 | . 1 . Energy Cannon . | . . . Ballistic Gun 7 | 2 3 2 Ballistic Cannon . | . . . Launcher 1 | . 1 . Special Weapon . | . . . Impact Weapon . | . . . Slashing Weapon . | . . . Piercing Weapon . | . . . Special Melee Weapon . | . . . Unidentified Prototypes . | . . . Parts Lost 7 | . 3 4 Power . | . . . Propulsion 2 | . . 2 Utility 1 | . 1 . Weapon 4 | . 2 2 Highest Loss Streak 3 | . 1 3 To Critical Strikes . | . . . Average Backups 10 | 4 9 14 Power . | . 1 1 Propulsion . | 1 . . Utility 5 | . 5 6 Weapon 3 | 1 2 7 Tool/Special . | . . . Unused Backups 20 | . 8 12 Power 1 | . . 1 Propulsion 2 | . 2 . Utility 11 | . 5 6 Weapon 6 | . 1 5 Tool/Special . | . . . Average Slot Usage (%) 97 | . 99 90 Engine 14 | . 14 14 Treads 26 | . 27 19 Device 2 | . 3 . Storage 14 | . 14 14 Processor 11 | . 10 14 Energy Gun 3 | . 4 . Ballistic Gun 24 | . 23 27 Peak Build Rating 10 | 7 10 9 Average Rating 8 | 4 8 8 On Entrance 5 | . 7 9 Avg Prop Armor Cover (%) . | . . . Naked Turns . | . . . Heaviest Build 29 | 14 29 29 Greatest Support 40 | 40 40 40 Greatest Overweight (x) 1 | . . 1 Average Overweight (x) . | . . . Largest Inventory Capacity 15 | 8 15 15 Average Capacity 12 | 7 11 15 Most Carried 15 | 7 15 15 Average Carried 10 | 4 9 14 Final Capacity 15 | 8 15 15 Final Carried 15 | 6 15 13 Class Distribution -------------------- 100% | Mutant Dominant Class ---------------- Mutant | -10/Materials Mutant | -10/Mines Resources | -11 -10 -10 ----------- Run | Yrd Mat Min Matter Collected 1127 | 298 618 211 Remotely . | . . . Salvage Created 890 | 121 501 268 Parts 57 | 8 33 16 Haulers Intercepted 2 | . 2 . Recyclers Shooed 1 | . 1 . Parts Field Recycled . | . . . Retrieved Matter . | . . . Parts Self-Destructed . | . . . Prevented . | . . . Parts Restored . | . . . Kills | -11 -10 -10 ------- Run | Yrd Mat Min Combat Hostiles Destroyed 16 | . 10 6 Guns 16 | . 10 6 Classes Destroyed 8 | 2 5 1 Worker 1 | . . 1 Tunneler 2 | 2 . . Hauler 2 | . 2 . Recycler 1 | 1 . . Operator 1 | . 1 . Watcher 1 | . 1 . Swarmer 5 | . 5 . Grunt 10 | . 5 5 Best Kill Streak 3 | 1 3 2 Combat Bots Only 3 | . 3 2 Max Kills in Single Turn 1 | 1 1 1 Gunslinging . | . . . Exploded . | . . . Melee . | . . . Uniques/NPCs Destroyed 1 | . . 1 YI-UF0 (-10/Mines) Combat | -11 -10 -10 -------- Run | Yrd Mat Min Hostile Shots Fired 103 | . 59 44 Missed 27 | . 18 9 Hits 76 | . 41 35 Projectile 76 | . 41 35 AOE 10 | . . 10 Critical Strikes 2 | . 1 1 Damage Taken 1205 | . 527 678 Core 260 | . 110 150 Absorbed by Shields . | . . . Core Remaining (%) 100 | 100 . . Volleys Fired 94 | 7 64 23 Largest 2 | 2 2 2 Hottest 85 | 40 85 40 Shots Fired 178 | 14 120 44 Gun 176 | 14 118 44 Cannon . | . . . Launcher 2 | . 2 . Special . | . . . Kinetic 164 | 14 106 44 Thermal 12 | . 12 . Explosive 2 | . 2 . Electromagnetic . | . . . Robot Hit Streak 12 | 4 12 10 Robot Miss Streak 3 | 2 3 3 Penetration Max . | . . . Secondary Targets 1 | . 1 . Max Gunslinging Chain 1 | . 1 . Shots Hit Robots 116 | 8 78 30 Core Hits 47 | 4 27 16 Critical Kills . | . . . Critical Parts Destroyed . | . . . Critical Strikes . | . . . Melee Attacks . | . . . Impact . | . . . Slashing . | . . . Piercing . | . . . Sneak Attacks . | . . . Combat Hostiles . | . . . Follow-up Attacks . | . . . Damage Inflicted 1299 | 78 804 417 Guns 1298 | 78 803 417 Cannons . | . . . Explosions 1 | . 1 . Melee . | . . . Ramming . | . . . Kinetic 1185 | 78 690 417 Thermal 113 | . 113 . Explosive 1 | . 1 . Electromagnetic . | . . . Impact . | . . . Slashing . | . . . Piercing . | . . . Highest Corruption . | . . . Average Corruption . | . . . Corruption Purged . | . . . Corruption Blocked . | . . . Overload Shots . | . . . Overflow Damage . | . . . Projectiles . | . . . Explosions . | . . . Melee . | . . . Knockbacks . | . . . Impact . | . . . Kinetic . | . . . Secondary . | . . . Self-Inflicted Damage . | . . . Shots . | . . . Rammed . | . . . Targets Rammed . | . . . Kicked . | . . . Crushed . | . . . Highest Temperature 140 | . 140 20 Average Temperature 30 | . 36 7 Received Heat Transfer 492 | . 264 228 Siege Activations . | . . . Martial Activations . | . . . Shielding Activations . | . . . Robots Disrupted . | . . . Combat Hostiles . | . . . Robots Corrupted . | . . . Combat Hostiles . | . . . Parts Fried . | . . . Impact Corruptions . | . . . Robots Melted . | . . . Combat Hostiles . | . . . Parts Melted 1 | . 1 . Heat Transferred 259 | . 259 . Parts Sabotaged . | . . . Parts Stolen . | . . . Parts Stripped . | . . . Power Chain Reactions . | . . . Alert | -11 -10 -10 ------- Run | Yrd Mat Min Maximum Alert Level . | . . . Low Security (%) 100 | 100 100 100 Level 1 . | . . . Level 2 . | . . . Level 3 . | . . . Level 4 . | . . . Level 5 . | . . . High Security . | . . . Max Security . | . . . Peak Influence 75 | 5 75 50 Initial . | . . . Average 13 | . 14 12 Influence Increases 483 | 15 328 140 Destroy 0b10 Robot/C 300 | . 200 100 Destroy 0b10 Robot/NC 40 | 15 20 5 Destroy Leader 76 | . 56 20 Successful Hack 11 | . 11 . Destroy Structure 11 | . 11 . Lose Combat Pursuer 45 | . 30 15 Influence Decreases 483 | 15 328 140 Time Decay 428 | 15 298 115 Lost Part 55 | . 30 25 Squads Dispatched 2 | . 2 . Investigation 1 | . 1 . Extermination . | . . . Reinforcement 1 | . 1 . Assault . | . . . Garrison . | . . . Intercept . | . . . Searches Triggered . | . . . Construction Impeded . | . . . Haulers Reinforced . | . . . Active Scanning Responses . | . . . Cargo Convoy Interrupts . | . . . Stealth | -11 -10 -10 --------- Run | Yrd Mat Min Distress Signals 2 | . 2 . Communications Jammed . | . . . Distress Signals . | . . . Times Spotted 29 | . 21 8 Peak Tracking Total 4 | . 4 2 Tactical Retreats 3 | . 2 1 Traps | -11 -10 -10 ------- Run | Yrd Mat Min Traps Triggered 2 | . 2 . Indirectly . | . . . Trap Hack Attempts . | . . . Triggered . | . . . Disarmed . | . . . Reprogrammed . | . . . Reused . | . . . Traps Extracted . | . . . Installed . | . . . Triggered . | . . . Machines | -11 -10 -10 ---------- Run | Yrd Mat Min Machines Disabled . | . . . Max in Single Turn . | . . . Machines Repaired . | . . . Machines Dismantled . | . . . Machines Sabotaged . | . . . Overloaded Fab Kills . | . . . Hacking | -11 -10 -10 --------- Run | Yrd Mat Min Machines Accessed 8 | . 8 . Terminals 6 | . 6 . Fabricators . | . . . Repair Stations . | . . . Recycling Units 2 | . 2 . Scanalyzers . | . . . Garrison Access . | . . . Total Hacks 19 | . 19 . Successful 11 | . 11 . Failed 8 | . 8 . Catastrophic 1 | . 1 . Database Lockouts . | . . . Manual 12 | . 12 . Terminals 15 | . 15 . Fabricators . | . . . Repair Stations . | . . . Recycling Units 4 | . 4 . Scanalyzers . | . . . Garrison Access . | . . . Terminal Hacks 4 | . 4 . Robot Analysis 1 | . 1 . Terminal Index 1 | . 1 . Zone Layout 2 | . 2 . Fabricator Hacks . | . . . Repair Station Hacks . | . . . Recycling Unit Hacks 2 | . 2 . Retrieve Components 2 | . 2 . Scanalyzer . | . . . Garrison Access Hacks . | . . . Unauthorized Hacks 5 | . 5 . Terminals 5 | . 5 . Skim 5 | . 5 . Fabricators . | . . . Repair Stations . | . . . Recycling Units . | . . . Scanalyzers . | . . . Garrison Access . | . . . Data Cores Recovered 1 | . 1 . Used . | . . . Hacking Detections 6 | . 6 . Full Trace Events . | . . . Feedback Events . | . . . Feedback Blocked . | . . . Robot Schematics Acquired . | . . . Robots Built . | . . . Authchips . | . . . Time . | . . . Total Robot Build Rating . | . . . Part Schematics Acquired . | . . . Parts Built . | . . . Authchips . | . . . Time . | . . . Total Part Build Rating . | . . . Part Studies Acquired . | . . . Parts Repaired . | . . . Time . | . . . Parts Recycled . | . . . Recycled Matter . | . . . Retrieved Matter . | . . . Retrieved Components 10 | . 10 . Parts Scanalyzed . | . . . Part Schematics Acquired . | . . . Parts Damaged . | . . . Bothacking | -11 -10 -10 ------------ Run | Yrd Mat Min Used RIF Installer . | . . . Robots Hacked . | . . . Non-combat . | . . . Combat . | . . . Robot Hacks Applied . | . . . Relay Couplers Released . | . . . Fabnet Peak Effective % . | . . . Robots Rewired . | . . . Allies Hacked . | . . . Hacks Repelled . | . . . Allies | -11 -10 -10 -------- Run | Yrd Mat Min Total Allies . | . . . Largest Group . | . . . Highest-Rated Group . | . . . Highest-Rated Ally . | . . . Total Orders . | . . . Ally Attacks . | . . . Total Damage . | . . . Kills . | . . . Allies Corrupted . | . . . Allies Melted . | . . . Intel | -11 -10 -10 ------- Run | Yrd Mat Min Active Infowar (turns) 400 | 3 397 . Seismic 400 | 3 397 . Robot Analysis Total 1 | . 1 . Derelict Logs Recovered . | . . . Drone Launches . | . . . Drone Recoveries . | . . . Exploration | -11 -10 -10 ------------- Run | Yrd Mat Min Turns Passed 2062 | 124 1517 421 Spaces Moved 835 | 64 594 177 Core 15 | 15 . . Treads 820 | 49 594 177 Legs . | . . . Wheels . | . . . Hover . | . . . Flight . | . . . Fastest Speed 50 | 50 160 160 Average Speed 165 | 134 160 197 Slowest Speed 240 | 160 160 240 Overloaded Moves . | . . . Propulsion Burnouts . | . . . Robots Hopped . | . . . Potential Cave-ins . | . . . Cave-ins Triggered . | . . . Exploration Rate (%) 44 | 5 89 38 Regions Visited 2 Branch Regions 1 Pre-discovered Areas 2 | . 2 . Known Exits Taken . | . . . Unknown Exits Taken 2 | 1 1 . Scrap Searched . | . . . Spaces Dug 7 | . 7 . Terrain Destroyed 11 | . 11 . Melee . | . . . Projectile . | . . . AOE 11 | . 11 . Terrain Rammed . | . . . Walls Destroyed . | . . . Machines Disabled . | . . . Actions | -11 -10 -10 --------- Run | Yrd Mat Min Total 1350 | 89 1054 207 Wait 352 | . 347 5 Move 833 | 63 593 177 Hop . | . . . Pick Up 36 | 12 24 . Fast Attach 4 | 1 3 . Attach 12 | 6 4 2 Detach . | . . . Swap 7 | . 7 . Drop 12 | . 12 . Fire 94 | 7 64 23 Melee . | . . . Ram . | . . . Kick . | . . . Crush . | . . . Escape Stasis . | . . . Rewire . | . . . Trap . | . . . Miscellaneous . | . . . Route ------- -11/Scrapyard -10/Materials (discovered 5 exits: *Mat x3 / [*Min] / Sub) -10/Mines (discovered 2 exits: Mat x2) History --------- Turn | Location | Event 7 | -11/Scrapyard | Discovered new exit (range 16) 125 | -11/Scrapyard | Entered Materials 328 | -10/Materials | Build established: Mutant 536 | -10/Materials | Discovered new exit (range 9) 868 | -10/Materials | Discovered new exit (range 15) 1045 | -10/Materials | Discovered new exit (range 16) 1281 | -10/Materials | Learned Storage trap positions 1342 | -10/Materials | Identified exit to Materials 1395 | -10/Materials | Identified exit to Subcaves 1439 | -10/Materials | Learned 2 Storage zone layouts 1473 | -10/Materials | Learned location of Storage (-9) 1495 | -10/Materials | Learned location of 2 exits from Materials 1575 | -10/Materials | Learned 4 Subcaves zone layouts 1632 | -10/Materials | Learned location of 2 exits from Materials 1642 | -10/Materials | Entered Mines 1644 | -10/Mines | Core integrity fell below 50% 1691 | -10/Mines | A weapon hastily lodged in a ceiling crevice suddenly fell to the ground 1773 | -10/Mines | YI-UF0 nonchalantly dropped a Grenade Launcher on the ground 1829 | -10/Mines | Core integrity fell below 20% 1832 | -10/Mines | Destroyed YI-UF0 2063 | -10/Mines | Destroyed by G-47 Trooper with Particle Gun Last Messages --------------- 01691_ A Mak. Spear has been hastily shoved under some rubble with a note attached: "Stab them where it hurts!" 01739_ G-47 Trooper destroyed. 01743_ Acquired 60 matter. 01773_ YI-UF0 nonchalantly drops a Grenade Launcher on the ground. 01783_ YI-UF0 mumbles something. 01825_ YI-UF0: "BOOM TO YOU TOO!" 01826_ Lgt. Treads destroyed. 01832_ YI-UF0 destroyed. 01833_ The unstable cave ceiling collapses. 01835_ Acquired 28 matter. 01847_ The unstable cave ceiling collapses. 01891_ G-34 Mercenary destroyed. 01901_ Acquired 40 matter. 02039_ Assault Rifle destroyed. 02047_ K-01 Serf destroyed. 02053_ G-34 Mercenary destroyed. 02055_ Critical hit (Burn: +37). 02057_ Lgt. Treads destroyed. 02059_ Assault Rifle destroyed. Map ----- +----------------------------------------------------+ | ??## ##????## ## ### ### | | ??# #?????# ## #### ########## ###### | | ??# ##????# #### #?# #???????## ##???## | | ??# ###### #??# #?# #???????# ##???? | | ??# #?## #?# #???????# #???? | | ??# ######## ##?# #??????## #???? | | ??# ###???# #???# ??????# #???? | | ??# ##?????# ### ##???###??????# #???? | | ??# #??????# #?#####?????????????# / ##???? | | ?## ##??????# #???????????????????## #????? | | ?# ######### ##???????????????????## ##????? | | ?# ! #?????????#??????????####?????? | | ?# = #???????? "???????????????????? | | ?## ######### #???????? ""??????????????????? | | ??####???????# #???????< "???????????????????? | | ?????????????# #???????? ???????????????????? | | ?????????????# #??????? ???????????????????? | | ?????????????# #??????? ????????????????????? | | ?????????????# #??????? ????????????????????? | | ?????????????# #??????? #????????????????????? | | ?????????????# #?????? #????????????????????? | | ?????????????# #?????? =###??????????????????? | | ?????????????# #??????gr! ???????????????????? | | ?????????????# #????## !#????????????????????? | | ?????????????# #???## *%##???????????????????? | | ?????????????# ##### @ = ##??????????????????? | | ???????????### ## ##?????????????????? | | ??????????## #?????????????????? | | ?????????## r""" #????????????? | | ?????????# """ #????????????? | | ?????????# ## """ #???????????? | | ?????????## #### ### #??????????? | | ??????????# #??### ###??# ??????????? | | ??????????# ##????# #?????## ???????????? | | ??????????# ??????? #???????? ???????????? | | ??????????# ??????? #????????? ????????????? | | ??????????## #????????#??????????????????????? | | ???????????# ????????????????????????????????? | | ???????????# ????????????????????????????????? | | ???????????# ????????????????????????????????? | | ??????????? ?????????????????????????????????? | | ???????????#$?????????????????????????????????? | | ???????????? ?????????????????????????????????? | | ??????????????????????????????????????????????? | | ??????????????????????????????????????????????? | | ??????????????????????????????????????????????? | | ??????????????????????????????????????????????? | | ??????????????????????????????????????????????? | | ??????????????????????????????????????????????? | | ??????????????????????????????????????????????? | +----------------------------------------------------+ Best States ------------- Heat Dissipation 25 Energy Generation 10 Energy Capacity 250 Matter Stores 300 Matter Capacity 300 Sight Range 16 Terrain Scan Density 10 Evasion (%) 50 Recoil Reduction 2 Salvage Targeting 1 Item Schematics ----------------- None Robot Schematics ------------------ None Fabricated ------------ Nothing Repaired ---------- Nothing Studied --------- None Alien Tech Used ----------------- None Achievements -------------- None Challenges ------------ None Game ------ Seed NavigationLinearSuperbattery Manual? 0 Play Time 00:09:36 Cumulative 415.2 hours Start 2025.10.24 @ 05:17:27 End 2025.10.24 @ 05:25:55 Sessions 1 Manual Loads 0 Difficulty Rogue Special Mode None Game No. 536 Rogue 536 Adventurer 0 Explorer 0 Win Type - Total 12 Types 6/0/1/2/1/0/2/0/0/0 Lore% 89 Gallery% 83 Achievement% 50 Wizard Run 0 Options --------- Layout 0 ASCII 0 Keyboard 0 Movement Mouse Keybinds 0 Fullscreen 1 Font 24/Terminus Map View 76x50 Zoom Use 0% Tactical HUD 1 Map Filters NONE Filters NONE Steam 1 RUN: 338858aa-1ac8-4b91-83b8-642935f741f9